Cogmind - Beta 14 @@@ ROGUE MODE // 2024.10.31 @ 17:59:34 Player: corey Result: Destroyed by L-31 Rogue with Katana Performance ------------- Evolutions (2) 1000 Regions Visited (4) 800 Robots Destroyed (42) 210 Value Destroyed (1095) 1095 Prototype IDs (1) 20 Alien Tech Used (0) 0 Bonus (0) 0 TOTAL SCORE: 3125 Bonus ------- None Cogmind --------- Core Integrity 0/550 Matter 247/300 Energy 100/100 System Corruption 24% Temperature Cool (0) Movement Core (350) Ox6 Location -8/Materials Parts ------- > --- POWER (1) -------- (None) > --- PROPULSION (4) --- (None) > --- UTILITY (4) ------ Large Storage Unit > --- WEAPON (2) ------- (None) > --- INVENTORY (15) --- Light Ion Engine Flight Unit Advanced Weight Redist. System Advanced Weight Redist. System System Shield Field Recycling Unit (0) Beam Rifle Improved Medium Laser Improved Medium Laser Light EM Pulse Cannon Ion Cannon Light Assault Rifle Peak State ------------ > --- POWER ------------ Improved Ion Engine > --- PROPULSION ------- Aluminum Leg Aluminum Leg Carbon-fiber Leg > --- UTILITY ---------- Advanced Heat Sink Large Storage Unit Small Matter Pod Hacking Suite > --- WEAPON ----------- Autogun Autogun > --- INVENTORY -------- Light Ion Engine Flight Unit Advanced Weight Redist. System Advanced Weight Redist. System System Shield Field Recycling Unit Beam Rifle Improved Medium Laser Improved Medium Laser Improved Medium Laser Light EM Pulse Cannon Ion Cannon Assault Rifle Light Assault Rifle [Rating: 24] Favorites ----------- Power Improved Ion Engine Engine Improved Ion Engine Propulsion Aluminum Leg Treads Advanced Treads Leg Aluminum Leg Wheel Wheel Utility Small Storage Unit Device Shield Generator Storage Small Storage Unit Hackware Hacking Suite Weapon Assault Rifle Energy Gun Beam Rifle Ballistic Gun Assault Rifle Ballistic Cannon Improved Light Cannon Build | -11 -10 -10 -9 -8 ------- Run | Yrd Mat Min Mat Mat Slots Evolved 4 | . . . 2 2 Power . | . . . . . Propulsion 2 | . . . 2 . Utility 2 | . . . . 2 Weapon . | . . . . . Parts Attached 39 | 6 2 1 10 20 Power 5 | 1 1 . 1 2 Engine 5 | 1 1 . 1 2 Core . | . . . . . Reactor . | . . . . . Propulsion 13 | 2 . 1 5 5 Treads 1 | . . . . 1 Leg 11 | 2 . 1 4 4 Wheel 1 | . . . 1 . Hover . | . . . . . Flight . | . . . . . Utility 9 | 1 1 . 1 6 Device 2 | . 1 . . 1 Storage 6 | 1 . . 1 4 Processor . | . . . . . Hackware 1 | . . . . 1 Protection . | . . . . . Artifact . | . . . . . Weapon 12 | 2 . . 3 7 Energy Gun 3 | . . . 1 2 Energy Cannon . | . . . . . Ballistic Gun 8 | 2 . . 1 5 Ballistic Cannon 1 | . . . 1 . Launcher . | . . . . . Special Weapon . | . . . . . Impact Weapon . | . . . . . Slashing Weapon . | . . . . . Piercing Weapon . | . . . . . Special Melee Weapon . | . . . . . Unidentified Prototypes 1 | . . . . 1 Parts Lost 26 | . . . 4 22 Power 4 | . . . 1 3 Propulsion 11 | . . . 2 9 Utility 5 | . . . 1 4 Weapon 6 | . . . . 6 Highest Loss Streak 12 | . . . 3 12 To Critical Strikes 2 | . . . . 2 Average Slot Usage (%) 89 | . 94 100 97 76 Engine 10 | . 14 14 11 8 Leg 28 | . 28 28 39 22 Device 6 | . 9 14 3 3 Storage 15 | . 14 14 18 15 Hackware 3 | . . . . 8 Ballistic Gun 18 | . 28 28 14 13 Ballistic Cannon 2 | . . . 4 3 Peak Build Rating 24 | 6 10 10 14 24 Average Rating 13 | 5 8 10 12 17 On Entrance 8 | . 6 10 10 14 Naked Turns . | . . . . . Heaviest Build 37 | 13 17 17 29 37 Greatest Support 43 | 20 20 20 43 43 Greatest Overweight (x) 10 | 2 . . 1 10 Average Overweight (x) . | . . . . . Largest Inventory Capacity 20 | 8 8 8 10 20 Average Capacity 10 | 7 8 8 9 14 Most Carried 14 | 4 8 8 10 14 Average Carried 8 | 2 6 8 8 9 Final Capacity 15 | 8 8 8 10 15 Final Carried 12 | 4 8 8 9 12 Class Distribution -------------------- 66% | Mutant 33% | Scavenger-Mutant Dominant Class ---------------- Mutant | -10/Materials Mutant | -10/Mines Mutant | -9/Materials Scavenger-Mutant | -8/Materials Resources | -11 -10 -10 -9 -8 ----------- Run | Yrd Mat Min Mat Mat Matter Collected 1479 | 170 61 233 371 644 Remotely . | . . . . . Salvage Created 1336 | . 16 182 497 641 Parts 82 | . 2 8 36 36 Haulers Intercepted 1 | . . . . 1 Recyclers Shooed . | . . . . . Parts Field Recycled . | . . . . . Retrieved Matter . | . . . . . Parts Self-Destructed . | . . . . . Prevented . | . . . . . Kills | -11 -10 -10 -9 -8 ------- Run | Yrd Mat Min Mat Mat Combat Hostiles Destroyed 32 | . . 5 12 15 Guns 31 | . . 5 12 14 Cannons 1 | . . . . 1 Classes Destroyed 11 | . 1 2 5 3 Worker 4 | . 1 . . 3 Tunneler 2 | . . . . 2 Hauler 1 | . . . . 1 Recycler 1 | . . . 1 . Operator 1 | . . . 1 . Watcher 2 | . . . 1 1 Swarmer 9 | . . . 3 6 Grunt 18 | . . 4 8 6 Sentry 3 | . . . 1 2 Hunter 1 | . . . . 1 Assembled 1 | . . 1 . . Best Kill Streak 6 | . 1 2 6 5 Combat Bots Only 6 | . . 2 6 5 Max Kills in Single Turn 2 | . 1 1 1 2 Gunslinging 1 | . . . . 1 Exploded . | . . . . . Melee . | . . . . . Uniques/NPCs Destroyed . | . . . . . Combat | -11 -10 -10 -9 -8 -------- Run | Yrd Mat Min Mat Mat Hostile Shots Fired 297 | . . 27 87 183 Missed 70 | . . 4 22 44 Damage Taken 3364 | . . 239 683 2442 Core 682 | . . 52 74 556 Absorbed by Shields 172 | . . 89 83 . Core Remaining (%) 86 | 100 . 79 81 . Volleys Fired 163 | . 1 20 49 93 Largest 2 | . 2 2 2 2 Hottest 95 | . 40 40 95 62 Shots Fired 289 | . 2 40 73 174 Gun 263 | . 2 40 70 151 Cannon 26 | . . . 3 23 Launcher . | . . . . . Special . | . . . . . Kinetic 283 | . 2 40 70 171 Thermal 6 | . . . 3 3 Explosive . | . . . . . Electromagnetic . | . . . . . Robot Hit Streak 12 | . 1 12 7 9 Robot Miss Streak 4 | . . 2 3 4 Penetration Max . | . . . . . Secondary Targets 6 | . . . 2 4 Max Gunslinging Chain 1 | . . . 1 1 Shots Hit Robots 183 | . 1 28 52 102 Core Hits 87 | . 1 11 29 46 Critical Kills 1 | . . . . 1 Critical Parts Destroyed 1 | . . . . 1 Critical Strikes 3 | . . . . 3 Destroy 3 | . . . . 3 Melee Attacks . | . . . . . Impact . | . . . . . Slashing . | . . . . . Piercing . | . . . . . Sneak Attacks . | . . . . . Combat Hostiles . | . . . . . Follow-up Attacks . | . . . . . Damage Inflicted 2684 | . 12 302 643 1727 Guns 2372 | . 12 302 620 1438 Cannons 301 | . . . 23 278 Explosions . | . . . . . Melee . | . . . . . Ramming 11 | . . . . 11 Kinetic 2612 | . 12 302 615 1683 Thermal 61 | . . . 28 33 Explosive . | . . . . . Electromagnetic . | . . . . . Impact . | . . . . . Slashing . | . . . . . Piercing . | . . . . . Highest Corruption 24 | . . . . 24 Average Corruption 18 | . . . . 18 Corruption Purged . | . . . . . Corruption Blocked . | . . . . . Effects 2 | . . . . 2 Data Loss (minor) 1 | . . . . 1 Data Loss (major) 1 | . . . . 1 Overload Shots . | . . . . . Overflow Damage . | . . . . . Projectiles . | . . . . . Explosions . | . . . . . Melee . | . . . . . Knockbacks 3 | . . . 1 2 Impact . | . . . . . Kinetic 3 | . . . 1 2 Secondary . | . . . . . Self-Inflicted Damage . | . . . . . Shots . | . . . . . Rammed 1 | . . . . 1 Targets Rammed 1 | . . . . 1 Kicked . | . . . . . Crushed . | . . . . . Highest Temperature 57 | . 2 24 54 57 Average Temperature 13 | . 1 5 12 20 Received Heat Transfer 1031 | . . 96 296 639 Siege Activations . | . . . . . Robots Corrupted . | . . . . . Combat Hostiles . | . . . . . Parts Fried . | . . . . . Impact Corruptions . | . . . . . Robots Melted . | . . . . . Combat Hostiles . | . . . . . Parts Melted . | . . . . . Heat Transferred 148 | . . . 74 74 Parts Sabotaged . | . . . . . Parts Stolen . | . . . . . Parts Stripped . | . . . . . Power Chain Reactions . | . . . . . Alert | -11 -10 -10 -9 -8 ------- Run | Yrd Mat Min Mat Mat Peak Influence 375 | . 20 77 369 375 Initial 155 | . . 7 7 155 Average 142 | . 2 25 177 245 Maximum Alert Level 1 | . . . 1 1 Low Security (%) 54 | 100 100 100 35 21 Level 1 45 | . . . 64 78 Level 2 . | . . . . . Level 3 . | . . . . . Level 4 . | . . . . . Level 5 . | . . . . . High Security . | . . . . . Max Security . | . . . . . Squads Dispatched 4 | . . . 1 3 Investigation 1 | . . . . 1 Extermination . | . . . . . Reinforcement 1 | . . . 1 . Assault . | . . . . . Garrison 2 | . . . . 2 Intercept . | . . . . . Searches Triggered . | . . . . . Construction Impeded . | . . . . . Haulers Reinforced . | . . . . . Active Scanning Responses . | . . . . . Cargo Convoy Interrupts . | . . . . . Stealth | -11 -10 -10 -9 -8 --------- Run | Yrd Mat Min Mat Mat Distress Signals 3 | . . . 1 2 Communications Jammed . | . . . . . Distress Signals . | . . . . . Times Spotted 56 | . 1 8 20 27 Peak Tracking Total 6 | . 1 2 6 5 Tactical Retreats 6 | . . 1 3 2 Traps | -11 -10 -10 -9 -8 ------- Run | Yrd Mat Min Mat Mat Traps Triggered 1 | . . . . 1 Indirectly . | . . . . . Trap Hack Attempts . | . . . . . Triggered . | . . . . . Disarmed . | . . . . . Reprogrammed . | . . . . . Reused . | . . . . . Traps Extracted . | . . . . . Installed . | . . . . . Triggered . | . . . . . Machines | -11 -10 -10 -9 -8 ---------- Run | Yrd Mat Min Mat Mat Machines Disabled . | . . . . . Max in Single Turn . | . . . . . Machines Repaired . | . . . . . Machines Dismantled . | . . . . . Machines Sabotaged . | . . . . . Overloaded Fab Kills . | . . . . . Hacking | -11 -10 -10 -9 -8 --------- Run | Yrd Mat Min Mat Mat Machines Accessed 1 | . . . 1 . Terminals 1 | . . . 1 . Fabricators . | . . . . . Repair Stations . | . . . . . Recycling Units . | . . . . . Scanalyzers . | . . . . . Garrison Access . | . . . . . Total Hacks 2 | . . . 2 . Successful 2 | . . . 2 . Failed . | . . . . . Catastrophic . | . . . . . Database Lockouts . | . . . . . Manual . | . . . . . Terminals 2 | . . . 2 . Fabricators . | . . . . . Repair Stations . | . . . . . Recycling Units . | . . . . . Scanalyzers . | . . . . . Garrison Access . | . . . . . Terminal Hacks 2 | . . . 2 . Record 1 | . . . 1 . Alert Level 1 | . . . 1 . Fabricator Hacks . | . . . . . Repair Station Hacks . | . . . . . Recycling Unit Hacks . | . . . . . Scanalyzer . | . . . . . Garrison Access Hacks . | . . . . . Unauthorized Hacks . | . . . . . Terminals . | . . . . . Fabricators . | . . . . . Repair Stations . | . . . . . Recycling Units . | . . . . . Scanalyzers . | . . . . . Garrison Access . | . . . . . Data Cores Recovered 1 | . . . 1 . Used . | . . . . . Hacking Detections . | . . . . . Full Trace Events . | . . . . . Feedback Events . | . . . . . Feedback Blocked . | . . . . . Robot Schematics Acquired . | . . . . . Robots Built . | . . . . . Authchips . | . . . . . Time . | . . . . . Total Robot Build Rating . | . . . . . Part Schematics Acquired . | . . . . . Parts Built . | . . . . . Authchips . | . . . . . Time . | . . . . . Total Part Build Rating . | . . . . . Parts Repaired . | . . . . . Time . | . . . . . Parts Recycled . | . . . . . Recycled Matter . | . . . . . Retrieved Matter . | . . . . . Retrieved Components . | . . . . . Parts Scanalyzed . | . . . . . Part Schematics Acquired . | . . . . . Parts Damaged . | . . . . . Bothacking | -11 -10 -10 -9 -8 ------------ Run | Yrd Mat Min Mat Mat Used RIF Installer . | . . . . . Robots Hacked . | . . . . . Non-combat . | . . . . . Combat . | . . . . . Robot Hacks Applied . | . . . . . Relay Couplers Released . | . . . . . Fabnet Peak Effective % . | . . . . . Robots Rewired . | . . . . . Allies Hacked . | . . . . . Hacks Repelled . | . . . . . Allies | -11 -10 -10 -9 -8 -------- Run | Yrd Mat Min Mat Mat Total Allies . | . . . . . Largest Group . | . . . . . Highest-Rated Group . | . . . . . Highest-Rated Ally . | . . . . . Total Orders . | . . . . . Ally Attacks . | . . . . . Total Damage . | . . . . . Kills . | . . . . . Allies Corrupted . | . . . . . Allies Melted . | . . . . . Intel | -11 -10 -10 -9 -8 ------- Run | Yrd Mat Min Mat Mat Robot Analysis Total . | . . . . . Derelict Logs Recovered . | . . . . . Drone Launches . | . . . . . Drone Recoveries . | . . . . . Exploration | -11 -10 -10 -9 -8 ------------- Run | Yrd Mat Min Mat Mat Turns Passed 1796 | 75 169 448 394 710 Spaces Moved 897 | 54 129 250 205 259 Core 14 | 6 . . . 8 Treads 10 | . . . . 10 Legs 873 | 48 129 250 205 241 Wheels . | . . . . . Hover . | . . . . . Flight . | . . . . . Fastest Speed 50 | 50 120 120 120 120 Average Speed 131 | 116 120 120 121 159 Slowest Speed 550 | 150 120 120 190 550 Overloaded Moves . | . . . . . Propulsion Burnouts . | . . . . . Robots Hopped . | . . . . . Cave-ins Triggered . | . . . . . Exploration Rate (%) 23 | 4 27 44 19 23 Regions Visited 4 Branch Regions 1 Pre-discovered Areas . | . . . . . Known Exits Taken . | . . . . . Unknown Exits Taken 4 | 1 1 1 1 . Scrap Searched . | . . . . . Spaces Dug . | . . . . . Terrain Destroyed 2 | . . . . 2 Melee . | . . . . . Projectile 2 | . . . . 2 AOE . | . . . . . Terrain Rammed . | . . . . . Walls Destroyed . | . . . . . Machines Disabled . | . . . . . Actions | -11 -10 -10 -9 -8 --------- Run | Yrd Mat Min Mat Mat Total 1250 | 63 142 363 280 402 Wait 109 | . 2 90 7 10 Move 893 | 53 128 249 204 259 Hop . | . . . . . Pick Up 32 | 4 6 1 6 15 Fast Attach 18 | 6 1 . 4 7 Attach 15 | . . . 3 12 Detach 1 | . . . . 1 Swap 6 | . 1 1 3 1 Drop 12 | . 3 2 4 3 Fire 163 | . 1 20 49 93 Melee . | . . . . . Ram . | . . . . . Kick . | . . . . . Crush 1 | . . . . 1 Escape Stasis . | . . . . . Rewire . | . . . . . Trap . | . . . . . Miscellaneous . | . . . . . Route ------- -11/Scrapyard -10/Materials -10/Mines -9/Materials (discovered 2 exits: *Mat / [*Sto]) -8/Materials History --------- Turn | Location | Event 10 | -11/Scrapyard | Discovered new exit (range 16) 76 | -11/Scrapyard | Entered Materials 217 | -10/Materials | Discovered new exit (range 12) 245 | -10/Materials | Entered Mines 317 | -10/Mines | Build established: Mutant 336 | -10/Mines | Excavation squad dispatched 336 | -10/Mines | A large section of the Mines collapsed 586 | -10/Mines | Excavation squad dispatched 690 | -10/Mines | Discovered new exit (range 3) 693 | -10/Mines | Entered Materials 693 | -9/Materials | Evolved 2 slots: Propulsion x2 844 | -9/Materials | Lost 3 parts (2n1u) 1083 | -9/Materials | Discovered new exit (range 5) 1084 | -9/Materials | Discovered new exit (range 14) 1087 | -9/Materials | Entered another Materials area 1087 | -8/Materials | Evolved 2 slots: Utility x2 1469 | -8/Materials | Lost 12 parts (2p5n1u4w) 1673 | -8/Materials | Garrison activated, responded to threat 1679 | -8/Materials | Core integrity fell below 50% 1751 | -8/Materials | System corruption reached 10% 1782 | -8/Materials | Core integrity fell below 20% 1797 | -8/Materials | Destroyed by L-31 Rogue with Katana Last Messages --------------- 01756_ Aluminum Leg destroyed. 01756_ System corrupted by crushing effect (+5). 01756_ Knocked back. 01761_ Assault Rifle severed. 01761_ Identified Imp. Medium Laser. 01762_ System corrupted: Substantial component data lost. 01763_ Imp. Medium Laser severed. 01765_ Critical hit (Smash). 01765_ Carbon-fiber Leg destroyed. 01765_ System corrupted by crushing effect (+4). 01766_ Acquired Imp. Medium Laser. 01767_ M-13 Machinist repairs L-31 Rogue. 01768_ Hacking Suite destroyed. 01768_ System corrupted by crushing effect (+3). 01771_ Aluminum Leg destroyed. 01778_ M-13 Machinist repairs B-36 Bruiser. 01780_ M-13 Machinist repairs Lgt. Armor Plating. 01782_ Knocked back. 01785_ Imp. Medium Laser severed. 01786_ System corrupted: Component data lost. Map ----- +----------------------------------------------------+ | ?????????????????????????????????????????????????? | | ?????????????????????????????????????????????????? | | ?????????????????????????????????????????????????? | | ?????????????????????????????????????????????????? | | ?????????????????????????????????????????????????? | | ?????????????????????????????????????????????????? | | ?????????????????????????????????????????????????? | | ?????????????????????????????????????????????????? | | ?????????????????????????????????????????????????? | | ?????????????????????????????????????????????????? | | ?????????????????????????????????????????????????? | | ?????????????????????????????????????????????????? | | ?????????????????????????????????????????????????? | | ?????????????????????????????????????????????????? | | ?????????????????????##########??????????????????? | | ?????????????????????# #??????????????????? | | ?????????????????????# #??????????????????? | | ?????????????????????# #??????????????????? | | ?????????????????????# [ #??????????????????? | | ?????????????????????# #??????????????????? | | ?????????????????#???# #??????????????????? | | ?????????????????# ??# #??????????????????? | | ?????????????????# ?# [ #??????????????????? | | ?????????????????# # #??????????????????? | | ?????????????????# *#####l#############+####????? | | ???????????????? # =%! @ ????? | | ?????????????????+ !%[ ???? | | ?????????????????# [ ! k ???????? | | ?????????????????#### / %"""" ?????????? | | ????????????????????# * / ="""" "???? | | ????????????????????# / """" "??? | | ????????????????????# ! ??? | | ????????????????????# ??? | | ????????????????????#% !=* #########+????? | | ????????????????????# #?????????????? | | ????????????????????# ##### #?????????????? | | ????????????????????# #???# t#?????????????? | | ????????????????????# #???# u#?????????????? | | ????????????????????# #???# #?????????????? | | ???????????????????## ##+##### #?????????????? | | ???????????????????## # # #?????????????? | | ??????????###########% # # #?????????????? | | ??????????# # # # #?????????????? | | ??????????# + + # #?????????????? | | ??????????# # # # #?????????????? | | ??????????# # # # #?????????????? | | ?????????##########?# ######## ####+######+??? | | ?????????# #???# | | ?????????# #???# = | | ?????????# #???# | +----------------------------------------------------+ Best States ------------- Heat Dissipation 50 Energy Generation 12 Energy Capacity 265 Matter Stores 386 Matter Capacity 450 Sight Range 16 Terrain Scan Density 10 Evasion (%) 55 Recoil Reduction 1 Offensive Hacking 10 Item Schematics ----------------- None Robot Schematics ------------------ None Fabricated ------------ Nothing Alien Tech Used ----------------- None Achievements -------------- None Challenges ------------ None Game ------ Seed LayeredChipFlightbrick Manual? 0 Play Time 00:32:38 Cumulative 27.5 hours Start 2024.10.31 @ 14:26:20 End 2024.10.31 @ 17:59:34 Sessions 3 Manual Loads 0 Difficulty Rogue Special Mode None Game No. 35 Rogue 35 Adventurer 0 Explorer 0 Win Type - Total 0 Types 0/0/0/0/0/0/0/0/0 Lore% 10 Gallery% 24 Achievement% 21 Wizard Run 0 Options --------- Layout 1 ASCII 0 Keyboard 0 Movement Numpad Keybinds 0 Fullscreen 1 Font 32/SmallcapsGlow Map View 38x17 Zoom Use 94% Tactical HUD 1 Map Filters NONE Filters NONE Steam 1 RUN: 37b74ee1-f419-4e30-b3be-5e5ddda52f65